bitfinex/quotes_ETHUSD_20240607
["timestamp","ask_amount","ask_price","bid_price","bid_amount"]
[1717777889553,0.711,3808.5,3808.1,2.62596]
[1717777890315,2.3839,3808.6,3808.1,2.62596]
[1717777890529,3.0949,3808.6,3808.1,2.62596]
[1717777892652,0.711,3808.4,3808.1,2.62596]
[1717777896059,0.711,3808.2,3807.9,7.43]
[1717777896227,2.4717,3808.1,3807.8,2.62613]
[1717777896426,0.711,3808.0,3807.8,2.62613]
[1717777896864,2.4717,3808.1,3807.8,2.62613]
[1717777897244,0.711,3808.3,3807.8,2.62613]
[1717777900041,2.3642,3808.4,3807.8,2.62613]
[1717777900248,0.711,3808.2,3807.8,2.62613]
[1717777901689,0.711,3808.5,3808.0,2.62602]
[1717777903371,0.711,3808.4,3808.0,2.62602]
[1717777905658,2.4625,3809.5,3808.0,0.262602]
[1717777905859,2.4625,3809.5,3807.8,0.711]
[1717777905860,0.711,3809.0,3808.1,2.2864]
[1717777906062,0.711,3808.8,3808.1,2.2864]
[1717777906281,0.711,3808.8,3808.2,0.22864]
[1717777906749,3.56772427,3809.4,3808.2,0.22864]
[1717777906960,3.56772427,3809.4,3808.6,2.62561]
[1717777906961,2.62528,3809.2,3808.6,2.62561]
[1717777907273,0.711,3808.8,3808.6,2.62561]
[1717777910490,0.711,3808.8,3808.3,2.6258]
[1717777912178,2.351,3808.9,3808.3,2.6258]
[1717777912369,0.711,3808.8,3808.3,2.6258]
[1717777914193,0.711,3808.7,3808.3,2.6258]
[1717777915666,0.71,3808.7,3808.3,2.6258]
[1717777921177,1.278638,3808.7,3808.3,2.6258]
[1717777921547,0.711,3808.5,3808.3,2.6258]
[1717777922091,0.711,3808.5,3808.0,2.62599]
[1717777922305,0.711,3808.1,3807.9,2.6261]
[1717777922793,0.711,3808.1,3807.8,7.43]
[1717777923495,3.0321,3808.1,3807.8,7.43]
[1717777924085,0.711,3808.0,3807.8,7.43]
[1717777925380,0.711,3807.9,3807.8,7.43]
[1717777925580,0.711,3807.9,3807.1,22.1055]
[1717777925800,0.711,3807.9,3807.2,2.34564453]
[1717777926371,2.62594,3808.2,3807.5,2.62635]
[1717777926699,0.711,3807.8,3807.5,2.62635]
[1717777927398,3.0479,3807.8,3807.5,2.62635]
[1717777927963,0.711,3807.6,3807.5,2.62635]
[1717777928170,0.711,3807.6,3807.2,2.62658]
[1717777928868,0.711,3807.5,3807.2,2.62658]
[1717777930127,0.711,3807.6,3807.2,2.62658]
[1717777930416,0.711,3807.6,3807.2,3.02433253]
[1717777930570,2.3369,3807.8,3807.2,2.62658]
[1717777930889,0.711,3807.3,3807.2,2.62658]
[1717777932284,0.711,3807.3,3806.9,2.62678]
[1717777932485,0.711,3807.0,3806.6,0.82354529]
[1717777932702,0.711,3806.8,3806.6,0.82354529]
[1717777932899,0.711,3806.8,3806.5,0.82354529]
[1717777933175,0.711,3806.6,3806.4,0.82354529]
[1717777933374,2.412,3806.5,3806.4,0.82354529]
[1717777933576,2.62715,3806.4,3806.2,0.82354529]
[1717777933850,0.711,3806.3,3806.2,0.82354529]
[1717777934110,0.711,3806.3,3806.1,0.82354529]
[1717777934316,0.711,3806.3,3806.0,0.82354529]
[1717777934516,0.711,3806.1,3806.0,0.82354529]
[1717777935213,2.62715,3806.4,3806.0,0.82354529]
[1717777935429,0.711,3806.1,3806.0,0.82354529]
[1717777936318,2.472,3807.6,3806.0,1.15305238]
[1717777936616,0.711,3806.6,3806.0,1.15305238]
[1717777936784,0.711,3806.6,3806.1,0.82354529]
[1717777936981,0.711,3806.6,3806.1,3.45088529]
[1717777937189,0.711,3806.6,3806.2,0.71446528]
[1717777937518,0.711,3806.4,3806.2,0.71446528]
[1717777937944,2.62688,3806.8,3806.1,3.45088529]
[1717777938906,1.71,3806.7,3806.0,0.82354529]
[1717777939108,2.4321,3806.6,3806.0,0.82354529]
[1717777939315,3.108998,3806.6,3806.0,0.82354529]
[1717777939521,2.4095,3806.5,3806.0,0.82354529]
[1717777939750,2.62733,3806.2,3806.0,0.82354529]
[1717777940124,2.4095,3806.1,3806.0,0.82354529]
[1717777944860,2.4095,3806.1,3805.2,0.82354529]
[1717777944861,2.62754,3805.9,3805.2,0.82354529]
[1717777945357,4.33754,3805.9,3805.1,0.82354529]
[1717777945565,4.33754,3805.9,3805.2,0.82354529]
[1717777945709,4.33754,3805.9,3805.3,0.82354529]
[1717777946358,4.33754,3805.9,3805.2,0.82354529]
[1717777946720,4.33754,3805.9,3805.1,0.82354529]
[1717777946721,2.6277,3805.7,3805.1,0.82354529]
[1717777947062,4.33782,3805.5,3805.1,0.82354529]
[1717777947221,2.62799,3805.2,3805.0,0.82354529]
[1717777948119,2.4222,3805.1,3805.0,0.82354529]
[1717777949318,2.4222,3805.1,3804.9,0.82354529]
[1717777949548,2.62812,3805.0,3804.9,0.82354529]
[1717777949948,2.62812,3805.0,3804.3,10.05859]
[1717777950167,2.62812,3805.0,3804.3,11.305179]
[1717777952064,2.62812,3805.0,3804.3,3.875179]
[1717777952262,2.62812,3805.0,3804.3,2.62859]
[1717777953638,2.62812,3805.0,3804.0,2.62877]
[1717777953839,2.62812,3805.0,3804.1,3.0]
[1717777955278,2.62812,3805.0,3804.0,2.62877]
[1717777956174,2.62828,3804.8,3804.0,2.62877]
[1717777956370,2.62828,3804.8,3804.1,2.243877]
[1717777958779,2.2941,3804.7,3804.1,2.243877]
[1717777959241,2.62841,3804.6,3803.9,7.43]
[1717777959706,4.0643,3804.3,3803.9,7.43]
[1717777960250,2.62867,3804.2,3803.9,7.43]
[1717777960455,2.62883,3804.0,3803.4,2.6292]
[1717777960687,2.62883,3804.0,3803.2,7.43]
[1717777962291,2.3595,3803.9,3803.2,7.43]
[1717777962494,2.62896,3803.8,3803.2,7.43]
[1717777963588,2.62896,3803.8,3802.9,7.43]
[1717777964829,2.62908,3803.6,3802.9,7.43]
[1717777965028,4.97448,3803.6,3802.9,7.43]
[1717777965190,5.642928,3803.6,3802.9,7.43]
[1717777966298,4.97448,3803.6,3802.9,7.43]
[1717777966501,2.62908,3803.6,3802.9,7.43]
[1717777966712,2.62908,3803.6,3802.8,14.7619]
[1717777966713,2.62908,3803.6,3802.8,2.3819]
[1717777967840,2.4624,3804.7,3803.5,4.46674959]
[1717777969105,2.62848,3804.5,3803.7,2.62898]
[1717777969306,2.62848,3804.5,3803.7,3.33855296]
[1717777982286,0.5683558,3804.9,3803.8,2.49597493]
[1717777982444,2.3892,3805.3,3803.8,5.4434]
[1717777982759,2.85595558,3805.3,3803.9,0.6152973]
[1717777982958,2.9575558,3805.7,3804.0,2.4434]
[1717777983145,2.62793,3805.3,3804.5,2.62841]
[1717777984523,2.62807,3805.1,3804.2,2.62862]
[1717777985231,5.08907,3805.1,3804.2,2.62862]
[1717777986373,2.62835,3804.7,3804.0,2.4434]
[1717777986542,2.62835,3804.7,3803.9,2.62883]
[1717777987169,2.62835,3804.7,3803.9,3.128053]
[1717777988837,2.62835,3804.7,3804.2,2.62866]
[1717777990173,2.62848,3804.5,3803.9,0.499223]
[1717777990381,2.62848,3804.5,3803.8,2.62888]
[1717777990875,2.3549,3804.4,3803.8,2.62888]
[1717777993031,2.3549,3804.4,3803.5,4.63065959]
[1717777993032,2.62863,3804.3,3803.5,4.63065959]
[1717777993233,2.62863,3804.3,3803.6,3.0]
[1717777993446,2.62863,3804.3,3803.5,4.63065959]
[1717777995273,2.62863,3804.3,3803.5,6.08620555]
[1717777995934,2.62876,3804.1,3803.5,6.08620555]
[1717777996139,2.62876,3804.1,3803.5,2.00154959]
[1717777996335,2.62889,3803.9,3803.5,2.00154959]
[1717777997776,2.3105,3803.6,3803.5,2.00154959]
[1717778007190,3.19757431,3803.7,3803.5,2.00154959]
[1717778007380,2.62904,3803.7,3803.5,2.00154959]
[1717778008603,2.62886,3804.0,3803.5,2.00154959]
[1717778008951,2.62896,3803.8,3803.5,2.00154959]
[1717778015322,2.62878,3804.1,3803.5,2.00154959]
[1717778019050,2.6289,3803.9,3803.5,2.00154959]
[1717778023298,2.85783498,3804.3,3803.5,2.00154959]
[1717778024238,2.629,3803.8,3803.5,2.00154959]
[1717778028143,0.713,3803.6,3803.5,2.00154959]
[1717778034287,2.629,3803.8,3803.5,2.00154959]
[1717778034487,0.713,3803.6,3803.5,2.00154959]
[1717778039700,3.34208,3803.6,3803.5,2.00154959]
[1717778039905,3.67628,3803.6,3803.5,2.00154959]
[1717778040462,5.98818,3803.6,3803.5,2.00154959]
[1717778041466,8.61726,3803.6,3803.5,2.00154959]
[1717778041655,9.18562614,3803.6,3803.5,2.00154959]
[1717778043238,11.81470614,3803.6,3803.5,2.00154959]
[1717778043512,14.81470614,3803.6,3803.5,2.00154959]
[1717778044078,5.84354614,3803.6,3803.5,2.00154959]
[1717778044284,5.65398,3803.6,3803.5,2.00154959]
[1717778045098,8.28306,3803.6,3803.5,2.00154959]
[1717778045311,8.85142614,3803.6,3803.5,2.00154959]
[1717778046007,9.85142614,3803.6,3803.5,2.00154959]
[1717778046174,10.83656875,3803.6,3803.5,2.00154959]
[1717778048209,10.83670445,3803.6,3803.5,2.00154959]
[1717778048916,11.40521934,3803.6,3803.5,2.00154959]
[1717778049073,16.4657975,3803.6,3803.5,2.00154959]
[1717778052015,2.63001,3802.3,3801.7,2.4512]
[1717778052176,2.63019,3802.0,3801.7,2.4512]
[1717778052821,2.461,3802.6,3801.6,7.43]
[1717778052822,2.63036,3801.8,3801.6,7.43]
[1717778054672,2.63036,3801.8,3800.8,2.63099]
[1717778055015,2.63036,3801.8,3800.6,2.4767]
[1717778055016,2.63065,3801.4,3800.6,2.4767]
[1717778055242,2.63065,3801.4,3800.7,2.4767]
[1717778055580,2.63065,3801.4,3800.7,5.4767]
[1717778055908,2.6308,3801.2,3800.5,7.43]
[1717778058479,2.4928,3801.7,3800.5,7.43]
[1717778058480,2.63093,3801.0,3800.5,7.43]
[1717778058677,2.63093,3801.0,3800.1,2.6315]
[1717778058917,2.63093,3801.0,3800.2,5.65030545]
[1717778059118,2.63093,3801.0,3800.3,2.63136]
[1717778060121,2.63093,3801.0,3800.0,7.43]
[1717778060122,2.6311,3800.7,3800.0,7.43]
[1717778060322,2.63031,3801.9,3800.0,7.43]
[1717778060323,2.63061,3801.4,3800.1,2.4389]
[1717778060587,2.63042,3801.7,3800.9,2.2859]
[1717778061011,2.63042,3801.7,3801.0,2.63085]
[1717778063231,2.63022,3802.0,3801.0,2.63085]
[1717778063745,2.63022,3802.0,3801.2,2.63069]
[1717778063927,2.63022,3802.0,3801.3,0.263069]
[1717778064840,2.63022,3802.0,3801.4,2.63059]
[1717778065334,2.63022,3802.0,3801.1,2.63079]
[1717778068200,2.63022,3802.0,3801.0,2.4624]
[1717778068201,2.63022,3802.0,3801.3,2.63063]
[1717778069875,2.63022,3802.0,3801.0,5.09326]
[1717778070189,2.63034,3801.8,3801.0,3.440186]
[1717778070373,4.2101876,3801.8,3801.0,3.440186]
[1717778070950,2.63034,3801.8,3801.0,3.440186]
[1717778071694,4.2101876,3801.8,3801.0,3.440186]
[1717778071862,4.2101876,3801.8,3801.0,2.63086]
[1717778071863,2.4335,3801.6,3801.0,2.63086]
[1717778072063,4.0133476,3801.6,3801.0,2.63086]
[1717778072595,6.6438576,3801.6,3800.7,5.63105]
[1717778072896,2.14859273,3801.5,3800.7,5.63105]
[1717778073109,1.5798476,3801.5,3800.7,5.63105]
[1717778073506,2.63072,3801.3,3800.5,7.43]
[1717778074880,2.631,3800.9,3799.9,4.71773346]
[1717778075082,2.2883,3801.2,3799.9,4.71773346]
[1717778075083,1.57977926,3801.1,3799.9,4.71773346]
[1717778075304,2.63112,3800.7,3799.9,4.71773346]
[1717778075483,2.63123,3800.5,3799.9,2.08615346]
[1717778078219,2.63138,3800.3,3799.9,2.08615346]
[1717778079223,4.21148047,3800.3,3799.9,2.08615346]
[1717778079398,2.63138,3800.3,3799.9,2.08615346]
[1717778080232,4.21148047,3800.3,3799.9,2.08615346]
[1717778081288,1.58010047,3800.2,3799.9,2.08615346]
[1717778082227,2.6315,3800.1,3799.9,2.08615346]
[1717778082387,4.21187871,3800.1,3799.9,2.08615346]
[1717778082587,1.58037871,3800.0,3799.9,2.08615346]
[1717778084028,1.58038725,3800.0,3799.9,2.08615346]
[1717778084250,1.58038725,3800.2,3799.9,2.08615346]
[1717778084397,1.58038725,3800.2,3799.9,2.29476881]
[1717778084607,1.58038725,3800.2,3799.9,4.92637881]
[1717778084914,1.58038725,3800.2,3800.1,5.1208]
[1717778085085,1.58038725,3800.7,3800.1,2.6315]
[1717778085829,1.58038725,3800.6,3799.9,2.29476881]
[1717778086127,1.58038725,3800.5,3799.9,5.29476881]
[1717778086997,4.21162725,3800.5,3799.9,2.08615346]
[1717778087306,1.58038725,3800.3,3799.9,2.08615346]
[1717778087817,1.58038725,3800.2,3799.9,2.08615346]
[1717778088614,1.58038725,3800.1,3799.9,2.08615346]
[1717778089307,1.58064309,3800.1,3799.9,2.08615346]
[1717778089663,4.21218309,3800.1,3799.9,2.08615346]
[1717778089865,1.58064309,3800.0,3799.9,2.08615346]
[1717778090750,3.05275831,3800.1,3799.9,2.08615346]
[1717778091596,1.58072736,3800.0,3799.9,2.08615346]
[1717778092096,2.2818,3800.0,3799.9,2.08615346]
[1717778095005,2.85085885,3800.0,3799.9,2.08615346]
[1717778095202,3.87566457,3800.0,3799.9,2.08615346]
[1717778099557,9.64066457,3800.0,3799.9,3.46e-06]
[1717778100063,2.3079,3799.7,3799.1,7.43]
[1717778100357,2.3079,3799.7,3797.7,10.06314]
[1717778100358,2.2915,3798.9,3797.7,10.06314]
[1717778100571,1.58017489,3798.6,3797.7,2.63314]
[1717778101288,3.29317489,3798.6,3797.2,2.63345]
[1717778101493,2.63302,3798.0,3796.9,2.63371]
[1717778101706,2.63316,3797.8,3796.9,2.63371]
[1717778102031,2.63316,3797.8,3796.8,2.4591]
[1717778102032,2.63316,3797.8,3797.1,2.63353]
[1717778102351,1.58017489,3798.1,3796.8,2.4591]
[1717778102547,1.58017489,3798.1,3796.9,0.41721]
[1717778102961,1.58017489,3798.1,3796.9,3.41721]
[1717778103276,1.58017489,3798.3,3797.3,2.63338]
[1717778103636,4.21287489,3798.4,3797.3,2.63338]
[1717778104357,4.21287489,3798.4,3797.5,2.63326]
[1717778104556,4.21287489,3798.4,3797.5,2.896586]
[1717778104752,2.6327,3798.4,3797.5,2.896586]
[1717778104932,4.21287489,3798.4,3797.5,2.896586]
[1717778105135,2.6327,3798.4,3797.5,2.896586]
[1717778105336,1.58017489,3798.5,3797.7,2.63311]
[1717778105586,1.58017489,3798.6,3797.8,0.5209336]
[1717778105730,2.63267,3798.5,3797.7,2.63311]
[1717778106251,4.21284489,3798.5,3797.6,2.3129]
[1717778106462,2.63281,3798.3,3797.5,3.0]
[1717778107477,2.63297,3798.0,3797.2,2.3319]
[1717778107676,1.58017489,3797.9,3797.1,2.63356]
[1717778107861,2.63337,3797.5,3796.5,2.63398]
[1717778108655,4.21354489,3797.5,3796.5,2.63398]
[1717778109365,2.63337,3797.5,3796.6,3.0]
[1717778109898,2.63337,3797.5,3796.7,2.63385]
[1717778110742,2.63337,3797.5,3796.8,2.3276]
[1717778110986,2.63337,3797.5,3796.8,3.123745]
[1717778112386,4.21328489,3797.8,3796.9,2.63372]
[1717778112580,2.63328,3797.6,3796.9,2.63372]
[1717778113188,2.63328,3797.6,3796.6,5.63392]
[1717778114881,2.63339,3797.4,3796.6,5.63392]
[1717778115185,3.136499,3797.4,3796.6,5.63392]
[1717778115538,2.63355,3797.2,3796.3,10.06411]
[1717778115986,0.503109,3797.4,3796.3,10.06411]
[1717778115987,2.63369,3797.0,3796.3,7.43]
[1717778116153,2.63381,3796.8,3796.3,7.43]
[1717778119190,2.63381,3796.8,3796.2,4.80493734]
[1717778119546,2.63411,3796.4,3796.2,2.17075734]
[1717778120688,1.58017489,3796.7,3796.2,2.17075734]
[1717778120993,2.285,3797.8,3796.8,2.63379]
[1717778120994,1.58017489,3797.1,3796.8,2.63379]
[1717778121290,1.58017489,3797.7,3796.8,2.63379]
[1717778121459,2.63324,3797.6,3796.8,2.63379]
[1717778122189,2.896564,3797.6,3796.5,7.43]
[1717778122489,2.63342,3797.4,3796.5,7.43]
[1717778122684,4.21240983,3797.4,3796.5,7.43]
[1717778122883,1.57898983,3797.3,3796.5,7.43]
[1717778124050,1.57898983,3797.2,3796.5,7.43]
[1717778124785,2.6336,3797.1,3796.5,7.43]
[1717778124985,2.63376,3796.9,3796.2,2.17075734]
[1717778125188,1.57898983,3796.8,3796.2,2.17075734]
[1717778125488,2.63376,3796.9,3796.2,2.17075734]
[1717778125489,1.57898983,3796.6,3796.2,2.17075734]
[1717778126181,1.57898983,3796.5,3796.2,2.17075734]
[1717778127164,1.57898983,3796.4,3796.2,2.17075734]
[1717778127569,1.57860472,3796.4,3796.2,2.17075734]
[1717778129205,0.56953778,3796.6,3796.2,2.17075734]
[1717778129394,0.56953778,3796.5,3796.2,2.17075734]
[1717778129601,1.57849764,3796.3,3796.2,2.17075734]
[1717778130308,1.57849764,3796.3,3796.2,5.03776007]
[1717778130625,1.976324,3797.6,3796.3,2.63414]
[1717778130626,1.57849764,3796.4,3796.3,2.63414]
[1717778130809,1.57849764,3796.9,3796.5,2.63395]
[1717778131716,1.57849764,3796.9,3796.6,0.07078843]
[1717778132027,1.57849764,3796.9,3796.7,2.63386]
[1717778132189,1.57849764,3797.0,3796.7,2.63386]
[1717778132549,1.57849764,3797.0,3796.9,2.63372]
[1717778132686,1.57849764,3797.2,3796.9,2.63372]
[1717778133385,1.57849764,3797.3,3796.9,2.63372]
[1717778133714,1.57849764,3797.2,3796.9,2.63372]
[1717778133897,1.57849764,3797.3,3797.2,2.63351]
[1717778134068,1.57849764,3797.4,3797.2,2.63351]
[1717778134273,1.57849764,3797.4,3797.2,2.70578627]
[1717778136968,1.57849764,3797.5,3797.2,2.70578627]
[1717778137208,1.57849764,3797.5,3797.2,2.9763649]
[1717778138411,1.57849764,3797.6,3797.2,0.07227627]
[1717778138577,1.57849764,3797.3,3797.2,0.07227627]
[1717778138774,1.57849764,3797.3,3797.2,0.07220099]
[1717778138975,1.57849764,3797.3,3796.9,3.0]
[1717778139175,1.57849764,3797.4,3797.2,2.63348]
[1717778139405,1.57849764,3797.5,3797.3,0.07216013]
[1717778139604,1.57849764,3797.5,3797.2,2.63348]
[1717778139781,1.57842309,3797.5,3797.2,2.63348]
[1717778139982,1.57842309,3797.5,3797.3,0.07216013]
[1717778140183,1.57842309,3797.5,3797.2,2.63348]
[1717778140376,1.57840721,3797.5,3797.2,2.63348]
[1717778140574,1.57840721,3797.5,3797.3,0.07216013]
[1717778140917,1.57840721,3797.5,3797.2,2.63348]
[1717778141078,1.57840721,3797.5,3797.4,0.07211927]
[1717778141615,1.57842485,3797.6,3797.4,2.70546927]
[1717778141775,1.57842485,3797.6,3797.5,0.27054693]
[1717778141976,1.57842485,3797.7,3797.6,2.63324]
[1717778142171,1.57842485,3798.0,3797.6,2.63324]
[1717778142416,1.57842485,3798.0,3797.6,0.07203755]
[1717778142615,1.73626734,3797.9,3797.6,0.07203755]
[1717778142786,1.57842485,3797.7,3797.1,2.63352]
[1717778142987,0.15784249,3797.9,3797.7,0.07188577]
[1717778143184,2.63312,3797.8,3797.1,2.63352]
[1717778143389,1.57821752,3797.6,3797.1,2.63352]
[1717778143617,1.57812999,3797.6,3797.2,0.07205441]
[1717778144120,1.57812999,3797.7,3797.2,0.07205441]
[1717778144626,1.57812999,3797.8,3797.3,2.63341]
[1717778144917,4.21118999,3797.9,3797.3,2.70547703]
[1717778145291,4.07812999,3798.0,3797.3,2.70547703]
[1717778145704,2.5,3798.0,3797.3,2.70547703]
[1717778146717,1.57812999,3797.9,3797.5,2.63324]
[1717778147079,2.5,3798.0,3797.6,0.07194445]
[1717778147994,2.5,3798.0,3797.7,2.63315]
[1717778148326,2.5,3798.0,3797.8,0.07186274]
[1717778148616,2.5,3798.0,3797.9,2.63303]
[1717778148817,2.5,3798.0,3797.9,2.70485189]
[1717778151830,2.5,3798.0,3797.9,5.15355189]
[1717778152010,2.5,3798.0,3797.9,8.93222208]
[1717778154433,2.5,3798.0,3797.9,11.56525208]
[1717778154936,2.5,3798.0,3797.9,8.93222208]
[1717778155431,2.5,3798.0,3797.9,13.27825208]
[1717778157437,2.5,3798.0,3797.9,15.91128208]
[1717778160325,0.00011634,3798.0,3797.9,15.91128208]
[1717778161800,0.00011634,3798.0,3797.9,16.66128208]
[1717778162634,0.00011634,3798.0,3797.9,15.91128208]
[1717778164112,0.00011634,3798.0,3797.9,3.48352208]
[1717778164313,0.00011634,3798.0,3797.9,2.70485189]
[1717778165629,0.00011634,3798.0,3797.9,5.70485189]
[1717778167420,0.00011634,3798.0,3797.9,8.33788189]
[1717778169387,0.00011634,3798.0,3797.9,10.76458189]
[1717778169560,0.00011634,3798.0,3797.9,13.39761189]
[1717778169761,0.00011634,3798.0,3797.9,14.90867308]
[1717778169977,0.00011634,3798.0,3797.9,12.27564308]
[1717778170327,0.00011634,3798.0,3797.9,14.90867308]
[1717778171274,0.00011634,3798.0,3797.9,17.54170308]
[1717778171732,0.00011634,3798.0,3797.9,14.90867308]
[1717778171928,0.00011634,3798.0,3797.9,17.54170308]
[1717778173359,0.00011634,3798.0,3797.9,14.90867308]
[1717778173771,0.00011634,3798.0,3797.9,17.54170308]
[1717778174243,0.00011634,3798.0,3797.9,14.90867308]
[1717778175533,0.00011634,3798.0,3797.9,15.17486732]
[1717778175740,0.00011634,3798.0,3797.9,14.90867308]
[1717778175946,0.00011634,3798.0,3797.9,6.84894308]
[1717778176147,0.00011634,3798.0,3797.9,5.33788189]
[1717778177484,0.00011634,3798.0,3797.9,8.33788189]
[1717778179680,0.00011634,3798.0,3797.9,10.97091189]
[1717778181351,0.00011634,3798.0,3797.9,13.86734189]
[1717778181546,0.00011634,3798.0,3797.9,17.05974189]
[1717778181748,0.00011634,3798.0,3797.9,19.01201608]
[1717778181984,0.00011634,3798.0,3797.9,20.88876837]
[1717778182485,0.00011634,3798.0,3797.9,18.25573837]
[1717778182689,0.00011634,3798.0,3797.9,20.88876837]
[1717778183297,2.3428,3799.7,3799.6,2.63185]
[1717778183794,2.3428,3799.7,3799.6,2.69998443]
[1717778185881,4.03468763,3800.1,3799.8,2.63166]
[1717778186081,2.4558,3800.1,3799.8,2.63166]
[1717778186268,2.4558,3800.1,3799.9,0.06792692]
[1717778186462,2.4558,3800.1,3799.8,2.63166]
[1717778188092,4.02138763,3800.5,3800.2,2.63143]
[1717778188492,4.02138763,3800.5,3800.3,0.06774788]
[1717778188798,2.4425,3800.5,3800.3,0.06774788]
[1717778188956,2.4425,3800.5,3800.2,2.63143]
[1717778189356,2.4425,3800.5,3800.3,0.06774788]
[1717778189895,2.4425,3800.5,3800.4,0.06770708]
[1717778190254,2.4425,3800.5,3799.9,2.63161]
[1717778190457,3.20016755,3800.8,3799.4,10.43]
[1717778190458,2.14800518,3800.8,3800.6,2.63116]
[1717778190683,2.3847,3800.9,3800.7,0.06755108]
[1717778191084,2.3847,3800.9,3800.8,2.63102]
[1717778191575,2.3847,3800.9,3800.8,2.69848281]
[1717778200423,2.3847,3800.9,3800.8,0.06746281]
[1717778200850,2.3847,3800.9,3800.5,2.63119]
[1717778201013,2.3847,3800.9,3800.8,0.06719379]
[1717778201207,2.3847,3800.9,3800.5,2.63119]
[1717778201410,2.3847,3800.9,3800.8,0.06719379]
[1717778201645,2.3847,3800.9,3800.2,2.63139]
[1717778201847,2.3847,3800.9,3800.8,0.06719379]
[1717778202047,2.3847,3800.9,3800.2,2.63139]
[1717778202209,2.3847,3800.9,3800.8,0.06719379]
[1717778202410,2.886263,3800.9,3800.2,2.63139]
[1717778202610,2.886263,3800.9,3800.8,0.06719379]
[1717778202809,2.4262,3800.6,3799.9,2.6316]
[1717778203238,2.4262,3800.6,3800.0,0.06752015]
[1717778203455,2.4262,3800.4,3800.0,0.06752015]
[1717778205440,2.63138,3800.3,3800.0,0.06752015]
[1717778205639,2.63138,3800.3,3799.8,7.43]
[1717778205823,2.63138,3800.3,3800.1,0.06761584]
[1717778206024,2.63138,3800.3,3799.8,7.43]
[1717778206241,2.63138,3800.3,3794.0,4.0858141]
[1717778206242,5.01828,3800.3,3800.2,0.06757504]
[1717778206416,2.3869,3799.8,3799.3,2.63203]
[1717778206748,2.3869,3799.8,3799.4,0.06793711]
[1717778209853,2.3869,3799.8,3799.0,2.63224]
[1717778210056,2.3869,3799.8,3799.5,0.06152857]
[1717778210254,2.3869,3799.8,3799.0,2.63224]
[1717778210433,2.3869,3799.8,3799.6,0.06173111]
[1717778210621,2.3869,3799.8,3798.9,7.43]
[1717778210622,2.3869,3799.8,3799.2,2.63209]
[1717778210846,2.3869,3799.8,3799.7,0.06169029]
[1717778211014,2.3869,3799.8,3799.4,2.63193]
[1717778211216,2.3869,3799.8,3799.7,0.06169821]
[1717778211424,2.3869,3799.8,3799.4,2.63193]
[1717778211620,2.3869,3799.8,3799.7,0.06169821]
[1717778212124,2.3869,3799.8,3799.4,2.63193]
[1717778212326,2.3869,3799.8,3799.7,0.06169821]
[1717778212572,2.3869,3799.8,3799.4,2.63193]
[1717778212740,2.3869,3799.8,3799.7,0.06169821]
[1717778213056,2.3869,3799.8,3799.6,2.63182]
[1717778213359,4.93987,3800.2,3799.7,0.06169821]
[1717778214061,5.4601708,3800.2,3799.7,0.06169821]
[1717778218028,2.6316,3800.0,3799.7,0.06169821]
[1717778218376,2.6316,3800.0,3799.3,2.63202]
[1717778218524,2.6316,3800.0,3799.8,0.061602]
[1717778218725,2.6316,3800.0,3799.3,2.63202]
[1717778219025,3.20394388,3800.0,3799.9,0.06156119]
[1717778219248,3.20394388,3800.0,3799.3,2.63202]
[1717778219745,3.20394388,3800.0,3799.4,0.06176524]
[1717778219973,2.63174,3799.8,3799.4,0.06176524]
[1717778220277,2.63186,3799.6,3799.5,0.06172443]
[1717778220502,2.63205,3799.4,3798.7,2.63242]
[1717778223954,2.63205,3799.4,3798.8,0.06210911]
[1717778224764,0.263205,3799.3,3798.8,0.06210911]
[1717778224966,4.9004,3799.0,3797.8,2.268]
[1717778225455,2.2681,3799.0,3797.9,2.69417666]
[1717778225653,2.2681,3799.0,3798.5,2.63256]
[1717778225956,2.2681,3799.0,3798.6,0.06089077]
[1717778227474,2.441,3799.4,3798.7,2.63246]
[1717778227681,2.441,3799.4,3798.8,0.06080911]
[1717778232995,5.073,3799.4,3798.8,0.06080911]
[1717778233199,5.073,3799.4,3798.7,2.63246]
[1717778233563,5.073,3799.4,3798.8,0.06080911]
[1717778233763,5.5803,3799.4,3798.8,0.06080911]
[1717778234071,5.5803,3799.4,3798.7,2.63246]
[1717778234517,5.5803,3799.4,3798.8,0.06080911]
[1717778235001,5.5803,3799.4,3798.7,2.63246]
[1717778235295,2.63215,3799.2,3798.8,0.05924618]
[1717778235472,3.190195,3799.2,3798.4,2.63263]
[1717778235669,2.63215,3799.2,3798.4,2.63263]
[1717778236002,2.63215,3799.2,3798.5,0.05936868]
[1717778238601,2.63215,3799.2,3798.6,2.63254]
[1717778238902,2.63215,3799.2,3798.6,2.69190316]
[1717778240104,2.441,3799.4,3798.8,2.63239]
[1717778240403,2.441,3799.4,3798.9,0.05924067]
[1717778241505,2.4256,3799.7,3799.0,2.63226]
[1717778241669,2.4256,3799.7,3799.1,0.05915902]
[1717778241870,2.63176,3799.8,3799.2,2.63212]
[1717778242069,5.05716,3800.1,3799.4,2.63194]
[1717778242480,5.05716,3800.1,3799.5,0.05908084]
[1717778242882,5.10665,3800.4,3799.6,2.63184]
[1717778243214,5.10665,3800.4,3799.7,0.05899922]
[1717778243215,0.510665,3800.3,3799.7,0.05899922]
[1717778244990,5.10665,3800.4,3799.8,2.63169]
[1717778245391,5.10665,3800.4,3799.9,0.0589176]
[1717778250618,5.10665,3800.4,3799.9,0.05522904]
[1717778252025,5.10665,3800.4,3799.8,2.63169]
[1717778252231,5.617315,3800.4,3799.8,2.63169]
[1717778252528,5.617315,3800.4,3799.9,0.05861255]
[1717778252690,5.617315,3800.4,3799.8,2.63169]
[1717778253198,2.985965,3800.4,3799.2,2.6321]
[1717778253412,2.4312,3799.7,3799.2,2.6321]
[1717778253595,2.4312,3799.7,3799.3,0.05871692]
[1717778253992,2.4312,3799.7,3799.2,2.6321]